Workbook

Sheet 200
A1: Data | C1: points | D1: =COUNT(D3:D110) -> 48 | G1: Path of a salesman | AF1: 29842.54044 | AG1: 29758.24647
A2: № | B2: Name | C2: X | D2: Y | G2: № | H2: Name | I2: X | J2: Y | L2: Length
A3: 1 | B3: Olympia (Washington) | C3: 5 | D3: 81.5 | F3: =VLOOKUP(A3,$G$3:$H$50,1,FALSE) -> 1 | G3: 1 | H3: =IF($G3<>"",INDEX(B$3:B$51,$G3),NA()) -> Olympia (Washington) | I3: =IF($G3<>"",INDEX(C$3:C$51,$G3),NA()) -> 5 | J3: =IF($G3<>"",INDEX(D$3:D$51,$G3),NA()) -> 81.5 | L3: =IF(AND(ISNUMBER(I3:J4)),SQRT((I3-I4)^2+(J3-J4)^2),"") -> 30.10460423 | AF3: 1 | AG3: 1
A4: 2 | B4: Montgomery (Alabama) | C4: 67.08646617 | D4: 25.71084337 | F4: =VLOOKUP(A4,$G$3:$H$50,1,FALSE) -> 2 | G4: 43 | H4: =IF($G4<>"",INDEX(B$3:B$51,$G4),NA()) -> Salt Lake City (Utah) | I4: =IF($G4<>"",INDEX(C$3:C$51,$G4),NA()) -> 23.77819549 | J4: =IF($G4<>"",INDEX(D$3:D$51,$G4),NA()) -> 57.96987952 | L4: =IF(AND(ISNUMBER(I4:J5)),SQRT((I4-I5)^2+(J4-J5)^2),"") -> 12.86699592 | AF4: 50 | AG4: 156
A5: 3 | B5: Phoenix (Arizona) | C5: 23.60902256 | D5: 30.26506024 | F5: 3 | G5: 11 | H5: =IF($G5<>"",INDEX(B$3:B$51,$G5),NA()) -> Boise (Idaho) | I5: =IF($G5<>"",INDEX(C$3:C$51,$G5),NA()) -> 15.9962406 | J5: =IF($G5<>"",INDEX(D$3:D$51,$G5),NA()) -> 68.21686747 | L5: =IF(AND(ISNUMBER(I5:J6)),SQRT((I5-I6)^2+(J5-J6)^2),"") -> 14.013247 | AF5: 175 | AG5: 200
A6: 4 | B6: Little Rock (Arkansas) | C6: 56.93609023 | D6: 35.57831325 | F6: 4 | G6: 25 | H6: =IF($G6<>"",INDEX(B$3:B$51,$G6),NA()) -> Helena (Montana) | I6: =IF($G6<>"",INDEX(C$3:C$51,$G6),NA()) -> 23.60902256 | J6: =IF($G6<>"",INDEX(D$3:D$51,$G6),NA()) -> 79.98192771 | L6: =IF(AND(ISNUMBER(I6:J7)),SQRT((I6-I7)^2+(J6-J7)^2),"") -> 18.67083994 | AF6: 130 | AG6: 126
A7: 5 | B7: Sacramento (California) | C7: 7.537593985 | D7: 49.24096386 | F7: 5 | G7: 1 | H7: =IF($G7<>"",INDEX(B$3:B$51,$G7),NA()) -> Olympia (Washington) | I7: =IF($G7<>"",INDEX(C$3:C$51,$G7),NA()) -> 5 | J7: =IF($G7<>"",INDEX(D$3:D$51,$G7),NA()) -> 81.5 | L7: =IF(AND(ISNUMBER(I7:J8)),SQRT((I7-I8)^2+(J7-J8)^2),"") -> 7.590361446 | AF7: 34 | AG7: 162
A8: 6 | B8: Denver (Colorado) | C8: 35.45112782 | D8: 53.79518072 | G8: 36 | H8: =IF($G8<>"",INDEX(B$3:B$51,$G8),NA()) -> Salem (Oregon) | I8: =IF($G8<>"",INDEX(C$3:C$51,$G8),NA()) -> 5 | J8: =IF($G8<>"",INDEX(D$3:D$51,$G8),NA()) -> 73.90963855 | L8: =IF(AND(ISNUMBER(I8:J9)),SQRT((I8-I9)^2+(J8-J9)^2),"") -> 22.66796449 | N8: 15 | AF8: 81 | AG8: 94
A9: 7 | B9: Hartford (Connecticut) | C9: 90.09398496 | D9: 61.38554217 | F9: 7 | G9: 27 | H9: =IF($G9<>"",INDEX(B$3:B$51,$G9),NA()) -> Carson City (Nevada) | I9: =IF($G9<>"",INDEX(C$3:C$51,$G9),NA()) -> 10.41353383 | J9: =IF($G9<>"",INDEX(D$3:D$51,$G9),NA()) -> 51.89759036 | L9: =IF(AND(ISNUMBER(I9:J10)),SQRT((I9-I10)^2+(J9-J10)^2),"") -> 3.91518766 | N9: =INDEX({"Quickly";"Normally";"Slowly";"Very slowly"},MATCH(N8,{0;9;12;15})) -> Very slowly | AF9: 180 | AG9: 32
A10: 8 | B10: Dover (Delaware) | C10: 85.35714286 | D10: 51.89759036 | F10: 8 | G10: 5 | H10: =IF($G10<>"",INDEX(B$3:B$51,$G10),NA()) -> Sacramento (California) | I10: =IF($G10<>"",INDEX(C$3:C$51,$G10),NA()) -> 7.537593985 | J10: =IF($G10<>"",INDEX(D$3:D$51,$G10),NA()) -> 49.24096386 | L10: =IF(AND(ISNUMBER(I10:J11)),SQRT((I10-I11)^2+(J10-J11)^2),"") -> 24.86716177 | AF10: 120 | AG10: 105
A11: 9 | B11: Tallahassee (Florida) | C11: 70.46992481 | D11: 18.5 | F11: 9 | G11: 3 | H11: =IF($G11<>"",INDEX(B$3:B$51,$G11),NA()) -> Phoenix (Arizona) | I11: =IF($G11<>"",INDEX(C$3:C$51,$G11),NA()) -> 23.60902256 | J11: =IF($G11<>"",INDEX(D$3:D$51,$G11),NA()) -> 30.26506024 | L11: =IF(AND(ISNUMBER(I11:J12)),SQRT((I11-I12)^2+(J11-J12)^2),"") -> 13.03886761 | N11: Total: | O11: =L52 -> 494.0733636 | AF11: 138 | AG11: 97
A12: 10 | B12: Atlanta (Georgia) | C12: 70.30075188 | D12: 31.02409639 | F12: 10 | G12: 30 | H12: =IF($G12<>"",INDEX(B$3:B$51,$G12),NA()) -> Santa Fe (New Mexico) | I12: =IF($G12<>"",INDEX(C$3:C$51,$G12),NA()) -> 33.92857143 | J12: =IF($G12<>"",INDEX(D$3:D$51,$G12),NA()) -> 38.23493976 | L12: =IF(AND(ISNUMBER(I12:J13)),SQRT((I12-I13)^2+(J12-J13)^2),"") -> 14.21559327 | AF12: 52 | AG12: 167
A13: 11 | B13: Boise (Idaho) | C13: 15.9962406 | D13: 68.21686747 | F13: 11 | G13: 35 | H13: =IF($G13<>"",INDEX(B$3:B$51,$G13),NA()) -> Oklahoma City (Oklahoma) | I13: =IF($G13<>"",INDEX(C$3:C$51,$G13),NA()) -> 48.13909774 | J13: =IF($G13<>"",INDEX(D$3:D$51,$G13),NA()) -> 37.85542169 | L13: =IF(AND(ISNUMBER(I13:J14)),SQRT((I13-I14)^2+(J13-J14)^2),"") -> 9.086930149 | AF13: 8 | AG13: 98
A14: 12 | B14: Springfield (Illinois) | C14: 61.67293233 | D14: 53.79518072 | F14: 12 | G14: 4 | H14: =IF($G14<>"",INDEX(B$3:B$51,$G14),NA()) -> Little Rock (Arkansas) | I14: =IF($G14<>"",INDEX(C$3:C$51,$G14),NA()) -> 56.93609023 | J14: =IF($G14<>"",INDEX(D$3:D$51,$G14),NA()) -> 35.57831325 | L14: =IF(AND(ISNUMBER(I14:J15)),SQRT((I14-I15)^2+(J14-J15)^2),"") -> 10.13125958 | AF14: 66 | AG14: 170
A15: 13 | B15: Indianapolis (Indiana) | C15: 67.2556391 | D15: 53.79518072 | F15: 13 | G15: 23 | H15: =IF($G15<>"",INDEX(B$3:B$51,$G15),NA()) -> Jackson (Mississippi) | I15: =IF($G15<>"",INDEX(C$3:C$51,$G15),NA()) -> 60.4887218 | J15: =IF($G15<>"",INDEX(D$3:D$51,$G15),NA()) -> 26.09036145 | L15: =IF(AND(ISNUMBER(I15:J16)),SQRT((I15-I16)^2+(J15-J16)^2),"") -> 14.7850657 | AF15: 38 | AG15: 49
A16: 14 | B16: Des Moines (Iowa) | C16: 54.90601504 | D16: 61.0060241 | F16: 14 | G16: 42 | H16: =IF($G16<>"",INDEX(B$3:B$51,$G16),NA()) -> Austin (Texas) | I16: =IF($G16<>"",INDEX(C$3:C$51,$G16),NA()) -> 47.80075188 | J16: =IF($G16<>"",INDEX(D$3:D$51,$G16),NA()) -> 18.5 | L16: =IF(AND(ISNUMBER(I16:J17)),SQRT((I16-I17)^2+(J16-J17)^2),"") -> 11.17186168 | AF16: 186 | AG16: 153
A17: 15 | B17: Topeka (Kansas) | C17: 51.35338346 | D17: 51.13855422 | F17: 15 | G17: 17 | H17: =IF($G17<>"",INDEX(B$3:B$51,$G17),NA()) -> Baton Rouge (Louisiana) | I17: =IF($G17<>"",INDEX(C$3:C$51,$G17),NA()) -> 58.96616541 | J17: =IF($G17<>"",INDEX(D$3:D$51,$G17),NA()) -> 18.87951807 | L17: =IF(AND(ISNUMBER(I17:J18)),SQRT((I17-I18)^2+(J17-J18)^2),"") -> 11.510018 | AF17: 149 | AG17: 70
A18: 16 | B18: Frankfort (Kentucky) | C18: 69.45488722 | D18: 48.10240964 | F18: 16 | G18: 9 | H18: =IF($G18<>"",INDEX(B$3:B$51,$G18),NA()) -> Tallahassee (Florida) | I18: =IF($G18<>"",INDEX(C$3:C$51,$G18),NA()) -> 70.46992481 | J18: =IF($G18<>"",INDEX(D$3:D$51,$G18),NA()) -> 18.5 | L18: =IF(AND(ISNUMBER(I18:J19)),SQRT((I18-I19)^2+(J18-J19)^2),"") -> 7.965177623 | AF18: 169 | AG18: 139
A19: 17 | B19: Baton Rouge (Louisiana) | C19: 58.96616541 | D19: 18.87951807 | F19: 17 | G19: 2 | H19: =IF($G19<>"",INDEX(B$3:B$51,$G19),NA()) -> Montgomery (Alabama) | I19: =IF($G19<>"",INDEX(C$3:C$51,$G19),NA()) -> 67.08646617 | J19: =IF($G19<>"",INDEX(D$3:D$51,$G19),NA()) -> 25.71084337 | L19: =IF(AND(ISNUMBER(I19:J20)),SQRT((I19-I20)^2+(J19-J20)^2),"") -> 6.209854284 | AF19: 126 | AG19: 140
A20: 18 | B20: Augusta (Maine) | C20: 95 | D20: 71.25301205 | F20: 18 | G20: 10 | H20: =IF($G20<>"",INDEX(B$3:B$51,$G20),NA()) -> Atlanta (Georgia) | I20: =IF($G20<>"",INDEX(C$3:C$51,$G20),NA()) -> 70.30075188 | J20: =IF($G20<>"",INDEX(D$3:D$51,$G20),NA()) -> 31.02409639 | L20: =IF(AND(ISNUMBER(I20:J21)),SQRT((I20-I21)^2+(J20-J21)^2),"") -> 5.863482394 | AF20: 162 | AG20: 17
A21: 19 | B21: Annapolis (Maryland) | C21: 83.66541353 | D21: 51.13855422 | F21: 19 | G21: 39 | H21: =IF($G21<>"",INDEX(B$3:B$51,$G21),NA()) -> Columbia (South Carolina) | I21: =IF($G21<>"",INDEX(C$3:C$51,$G21),NA()) -> 76.05263158 | J21: =IF($G21<>"",INDEX(D$3:D$51,$G21),NA()) -> 32.1626506 | L21: =IF(AND(ISNUMBER(I21:J22)),SQRT((I21-I22)^2+(J21-J22)^2),"") -> 7.399991301 | AF21: 94 | AG21: 90
A22: 20 | B22: Boston (Massachusetts) | C22: 92.80075188 | D22: 64.04216867 | F22: 20 | G22: 32 | H22: =IF($G22<>"",INDEX(B$3:B$51,$G22),NA()) -> Raleigh (North Carolina) | I22: =IF($G22<>"",INDEX(C$3:C$51,$G22),NA()) -> 80.28195489 | J22: =IF($G22<>"",INDEX(D$3:D$51,$G22),NA()) -> 38.23493976 | L22: =IF(AND(ISNUMBER(I22:J23)),SQRT((I22-I23)^2+(J22-J23)^2),"") -> 7.406632856 | AF22: 32 | AG22: 89
A23: 21 | B23: Lansing (Michigan) | C23: 70.13157895 | D23: 65.18072289 | F23: 21 | G23: 45 | H23: =IF($G23<>"",INDEX(B$3:B$51,$G23),NA()) -> Richmond (Virginia) | I23: =IF($G23<>"",INDEX(C$3:C$51,$G23),NA()) -> 81.97368421 | J23: =IF($G23<>"",INDEX(D$3:D$51,$G23),NA()) -> 45.44578313 | L23: =IF(AND(ISNUMBER(I23:J24)),SQRT((I23-I24)^2+(J23-J24)^2),"") -> 7.731500434 | AF23: 105 | AG23: 11
A24: 22 | B24: St. Paul (Minnesota) | C24: 55.58270677 | D24: 73.90963855 | F24: 22 | G24: 46 | H24: =IF($G24<>"",INDEX(B$3:B$51,$G24),NA()) -> Charleston (West Virginia) | I24: =IF($G24<>"",INDEX(C$3:C$51,$G24),NA()) -> 75.03759398 | J24: =IF($G24<>"",INDEX(D$3:D$51,$G24),NA()) -> 48.86144578 | L24: =IF(AND(ISNUMBER(I24:J25)),SQRT((I24-I25)^2+(J24-J25)^2),"") -> 5.634070528 | AF24: 97 | AG24: 168
A25: 23 | B25: Jackson (Mississippi) | C25: 60.4887218 | D25: 26.09036145 | F25: 23 | G25: 16 | H25: =IF($G25<>"",INDEX(B$3:B$51,$G25),NA()) -> Frankfort (Kentucky) | I25: =IF($G25<>"",INDEX(C$3:C$51,$G25),NA()) -> 69.45488722 | J25: =IF($G25<>"",INDEX(D$3:D$51,$G25),NA()) -> 48.10240964 | L25: =IF(AND(ISNUMBER(I25:J26)),SQRT((I25-I26)^2+(J25-J26)^2),"") -> 8.310317641 | AF25: 167 | AG25: 110
A26: 24 | B26: Jefferson City (Missouri) | C26: 57.10526316 | D26: 49.24096386 | F26: 24 | G26: 41 | H26: =IF($G26<>"",INDEX(B$3:B$51,$G26),NA()) -> Nashville (Tennessee) | I26: =IF($G26<>"",INDEX(C$3:C$51,$G26),NA()) -> 66.07142857 | J26: =IF($G26<>"",INDEX(D$3:D$51,$G26),NA()) -> 40.51204819 | L26: =IF(AND(ISNUMBER(I26:J27)),SQRT((I26-I27)^2+(J26-J27)^2),"") -> 12.51343641 | AF26: 98 | AG26: 23
A27: 25 | B27: Helena (Montana) | C27: 23.60902256 | D27: 79.98192771 | F27: 25 | G27: 24 | H27: =IF($G27<>"",INDEX(B$3:B$51,$G27),NA()) -> Jefferson City (Missouri) | I27: =IF($G27<>"",INDEX(C$3:C$51,$G27),NA()) -> 57.10526316 | J27: =IF($G27<>"",INDEX(D$3:D$51,$G27),NA()) -> 49.24096386 | L27: =IF(AND(ISNUMBER(I27:J28)),SQRT((I27-I28)^2+(J27-J28)^2),"") -> 6.056811806 | AF27: 170 | AG27: 42
A28: 26 | B28: Lincoln (Nebraska) | C28: 49.32330827 | D28: 57.96987952 | F28: 26 | G28: 15 | H28: =IF($G28<>"",INDEX(B$3:B$51,$G28),NA()) -> Topeka (Kansas) | I28: =IF($G28<>"",INDEX(C$3:C$51,$G28),NA()) -> 51.35338346 | J28: =IF($G28<>"",INDEX(D$3:D$51,$G28),NA()) -> 51.13855422 | L28: =IF(AND(ISNUMBER(I28:J29)),SQRT((I28-I29)^2+(J28-J29)^2),"") -> 7.126584781 | AF28: 49 | AG28: 173
A29: 27 | B29: Carson City (Nevada) | C29: 10.41353383 | D29: 51.89759036 | F29: 27 | G29: 26 | H29: =IF($G29<>"",INDEX(B$3:B$51,$G29),NA()) -> Lincoln (Nebraska) | I29: =IF($G29<>"",INDEX(C$3:C$51,$G29),NA()) -> 49.32330827 | J29: =IF($G29<>"",INDEX(D$3:D$51,$G29),NA()) -> 57.96987952 | L29: =IF(AND(ISNUMBER(I29:J30)),SQRT((I29-I30)^2+(J29-J30)^2),"") -> 6.354902733 | AF29: 153 | AG29: 185
A30: 28 | B30: Concord (New Hampshire) | C30: 91.95488722 | D30: 67.07831325 | F30: 28 | G30: 14 | H30: =IF($G30<>"",INDEX(B$3:B$51,$G30),NA()) -> Des Moines (Iowa) | I30: =IF($G30<>"",INDEX(C$3:C$51,$G30),NA()) -> 54.90601504 | J30: =IF($G30<>"",INDEX(D$3:D$51,$G30),NA()) -> 61.0060241 | L30: =IF(AND(ISNUMBER(I30:J31)),SQRT((I30-I31)^2+(J30-J31)^2),"") -> 9.888752793 | AF30: 70 | AG30: 22
A31: 29 | B31: Trenton (New Jersey) | C31: 86.71052632 | D31: 56.07228916 | F31: 29 | G31: 12 | H31: =IF($G31<>"",INDEX(B$3:B$51,$G31),NA()) -> Springfield (Illinois) | I31: =IF($G31<>"",INDEX(C$3:C$51,$G31),NA()) -> 61.67293233 | J31: =IF($G31<>"",INDEX(D$3:D$51,$G31),NA()) -> 53.79518072 | L31: =IF(AND(ISNUMBER(I31:J32)),SQRT((I31-I32)^2+(J31-J32)^2),"") -> 5.582706767 | AF31: 139 | AG31: 193
A32: 30 | B32: Santa Fe (New Mexico) | C32: 33.92857143 | D32: 38.23493976 | F32: 30 | G32: 13 | H32: =IF($G32<>"",INDEX(B$3:B$51,$G32),NA()) -> Indianapolis (Indiana) | I32: =IF($G32<>"",INDEX(C$3:C$51,$G32),NA()) -> 67.2556391 | J32: =IF($G32<>"",INDEX(D$3:D$51,$G32),NA()) -> 53.79518072 | L32: =IF(AND(ISNUMBER(I32:J33)),SQRT((I32-I33)^2+(J32-J33)^2),"") -> 5.531966584 | AF32: 140 | AG32: 111
A33: 31 | B33: Albany (New York) | C33: 88.40225564 | D33: 64.80120482 | F33: 31 | G33: 34 | H33: =IF($G33<>"",INDEX(B$3:B$51,$G33),NA()) -> Columbus (Ohio) | I33: =IF($G33<>"",INDEX(C$3:C$51,$G33),NA()) -> 72.66917293 | J33: =IF($G33<>"",INDEX(D$3:D$51,$G33),NA()) -> 54.93373494 | L33: =IF(AND(ISNUMBER(I33:J34)),SQRT((I33-I34)^2+(J33-J34)^2),"") -> 10.38216715 | AF33: 17 | AG33: 103
A34: 32 | B34: Raleigh (North Carolina) | C34: 80.28195489 | D34: 38.23493976 | F34: 32 | G34: 37 | H34: =IF($G34<>"",INDEX(B$3:B$51,$G34),NA()) -> Harrisburg (Pennsylvania) | I34: =IF($G34<>"",INDEX(C$3:C$51,$G34),NA()) -> 82.9887218 | J34: =IF($G34<>"",INDEX(D$3:D$51,$G34),NA()) -> 56.07228916 | L34: =IF(AND(ISNUMBER(I34:J35)),SQRT((I34-I35)^2+(J34-J35)^2),"") -> 4.979924914 | AF34: 90 | AG34: 58
A35: 33 | B35: Bismarck (North Dakota) | C35: 42.55639098 | D35: 81.12048193 | F35: 33 | G35: 19 | H35: =IF($G35<>"",INDEX(B$3:B$51,$G35),NA()) -> Annapolis (Maryland) | I35: =IF($G35<>"",INDEX(C$3:C$51,$G35),NA()) -> 83.66541353 | J35: =IF($G35<>"",INDEX(D$3:D$51,$G35),NA()) -> 51.13855422 | L35: =IF(AND(ISNUMBER(I35:J36)),SQRT((I35-I36)^2+(J35-J36)^2),"") -> 1.854207101 | AF35: 89 | AG35: 128
A36: 34 | B36: Columbus (Ohio) | C36: 72.66917293 | D36: 54.93373494 | F36: 34 | G36: 8 | H36: =IF($G36<>"",INDEX(B$3:B$51,$G36),NA()) -> Dover (Delaware) | I36: =IF($G36<>"",INDEX(C$3:C$51,$G36),NA()) -> 85.35714286 | J36: =IF($G36<>"",INDEX(D$3:D$51,$G36),NA()) -> 51.89759036 | L36: =IF(AND(ISNUMBER(I36:J37)),SQRT((I36-I37)^2+(J36-J37)^2),"") -> 4.388593945 | AF36: 11 | AG36: 29
A37: 35 | B37: Oklahoma City (Oklahoma) | C37: 48.13909774 | D37: 37.85542169 | F37: 35 | G37: 29 | H37: =IF($G37<>"",INDEX(B$3:B$51,$G37),NA()) -> Trenton (New Jersey) | I37: =IF($G37<>"",INDEX(C$3:C$51,$G37),NA()) -> 86.71052632 | J37: =IF($G37<>"",INDEX(D$3:D$51,$G37),NA()) -> 56.07228916 | L37: =IF(AND(ISNUMBER(I37:J38)),SQRT((I37-I38)^2+(J37-J38)^2),"") -> 6.299083265 | AF37: 168 | AG37: 191
A38: 36 | B38: Salem (Oregon) | C38: 5 | D38: 73.90963855 | F38: 36 | G38: 7 | H38: =IF($G38<>"",INDEX(B$3:B$51,$G38),NA()) -> Hartford (Connecticut) | I38: =IF($G38<>"",INDEX(C$3:C$51,$G38),NA()) -> 90.09398496 | J38: =IF($G38<>"",INDEX(D$3:D$51,$G38),NA()) -> 61.38554217 | L38: =IF(AND(ISNUMBER(I38:J39)),SQRT((I38-I39)^2+(J38-J39)^2),"") -> 2.231754077 | AF38: 110 | AG38: 197
A39: 37 | B39: Harrisburg (Pennsylvania) | C39: 82.9887218 | D39: 56.07228916 | F39: 37 | G39: 38 | H39: =IF($G39<>"",INDEX(B$3:B$51,$G39),NA()) -> Providence (Rhode Island) | I39: =IF($G39<>"",INDEX(C$3:C$51,$G39),NA()) -> 92.29323308 | J39: =IF($G39<>"",INDEX(D$3:D$51,$G39),NA()) -> 61.76506024 | L39: =IF(AND(ISNUMBER(I39:J40)),SQRT((I39-I40)^2+(J39-J40)^2),"") -> 2.332980529 | AF39: 23 | AG39: 176
A40: 38 | B40: Providence (Rhode Island) | C40: 92.29323308 | D40: 61.76506024 | F40: 38 | G40: 20 | H40: =IF($G40<>"",INDEX(B$3:B$51,$G40),NA()) -> Boston (Massachusetts) | I40: =IF($G40<>"",INDEX(C$3:C$51,$G40),NA()) -> 92.80075188 | J40: =IF($G40<>"",INDEX(D$3:D$51,$G40),NA()) -> 64.04216867 | L40: =IF(AND(ISNUMBER(I40:J41)),SQRT((I40-I41)^2+(J40-J41)^2),"") -> 3.151771078 | AF40: 42 | AG40: 199
A41: 39 | B41: Columbia (South Carolina) | C41: 76.05263158 | D41: 32.1626506 | F41: 39 | G41: 28 | H41: =IF($G41<>"",INDEX(B$3:B$51,$G41),NA()) -> Concord (New Hampshire) | I41: =IF($G41<>"",INDEX(C$3:C$51,$G41),NA()) -> 91.95488722 | J41: =IF($G41<>"",INDEX(D$3:D$51,$G41),NA()) -> 67.07831325 | L41: =IF(AND(ISNUMBER(I41:J42)),SQRT((I41-I42)^2+(J41-J42)^2),"") -> 5.167283802 | AF41: 173 | AG41: 108
A42: 40 | B42: Pierre (South Dakota) | C42: 43.40225564 | D42: 71.63253012 | F42: 40 | G42: 18 | H42: =IF($G42<>"",INDEX(B$3:B$51,$G42),NA()) -> Augusta (Maine) | I42: =IF($G42<>"",INDEX(C$3:C$51,$G42),NA()) -> 95 | J42: =IF($G42<>"",INDEX(D$3:D$51,$G42),NA()) -> 71.25301205 | L42: =IF(AND(ISNUMBER(I42:J43)),SQRT((I42-I43)^2+(J42-J43)^2),"") -> 4.736842105 | AF42: 185 | AG42: 129
A43: 41 | B43: Nashville (Tennessee) | C43: 66.07142857 | D43: 40.51204819 | F43: 41 | G43: 44 | H43: =IF($G43<>"",INDEX(B$3:B$51,$G43),NA()) -> Montpelier (Vermont) | I43: =IF($G43<>"",INDEX(C$3:C$51,$G43),NA()) -> 90.26315789 | J43: =IF($G43<>"",INDEX(D$3:D$51,$G43),NA()) -> 71.25301205 | L43: =IF(AND(ISNUMBER(I43:J44)),SQRT((I43-I44)^2+(J43-J44)^2),"") -> 6.714817475 | AF43: 22 | AG43: 36
A44: 42 | B44: Austin (Texas) | C44: 47.80075188 | D44: 18.5 | F44: 42 | G44: 31 | H44: =IF($G44<>"",INDEX(B$3:B$51,$G44),NA()) -> Albany (New York) | I44: =IF($G44<>"",INDEX(C$3:C$51,$G44),NA()) -> 88.40225564 | J44: =IF($G44<>"",INDEX(D$3:D$51,$G44),NA()) -> 64.80120482 | L44: =IF(AND(ISNUMBER(I44:J45)),SQRT((I44-I45)^2+(J44-J45)^2),"") -> 18.27461794 | AF44: 193 | AG44: 159
A45: 43 | B45: Salt Lake City (Utah) | C45: 23.77819549 | D45: 57.96987952 | F45: 43 | G45: 21 | H45: =IF($G45<>"",INDEX(B$3:B$51,$G45),NA()) -> Lansing (Michigan) | I45: =IF($G45<>"",INDEX(C$3:C$51,$G45),NA()) -> 70.13157895 | J45: =IF($G45<>"",INDEX(D$3:D$51,$G45),NA()) -> 65.18072289 | L45: =IF(AND(ISNUMBER(I45:J46)),SQRT((I45-I46)^2+(J45-J46)^2),"") -> 8.36729823 | AF45: 111 | AG45: 75
A46: 44 | B46: Montpelier (Vermont) | C46: 90.26315789 | D46: 71.25301205 | F46: 44 | G46: 47 | H46: =IF($G46<>"",INDEX(B$3:B$51,$G46),NA()) -> Madison (Wisconsin) | I46: =IF($G46<>"",INDEX(C$3:C$51,$G46),NA()) -> 61.84210526 | J46: =IF($G46<>"",INDEX(D$3:D$51,$G46),NA()) -> 66.31927711 | L46: =IF(AND(ISNUMBER(I46:J47)),SQRT((I46-I47)^2+(J46-J47)^2),"") -> 9.838376716 | AF46: 103 | AG46: 67
A47: 45 | B47: Richmond (Virginia) | C47: 81.97368421 | D47: 45.44578313 | F47: 45 | G47: 22 | H47: =IF($G47<>"",INDEX(B$3:B$51,$G47),NA()) -> St. Paul (Minnesota) | I47: =IF($G47<>"",INDEX(C$3:C$51,$G47),NA()) -> 55.58270677 | J47: =IF($G47<>"",INDEX(D$3:D$51,$G47),NA()) -> 73.90963855 | L47: =IF(AND(ISNUMBER(I47:J48)),SQRT((I47-I48)^2+(J47-J48)^2),"") -> 14.88896119 | AF47: 58 | AG47: 132
A48: 46 | B48: Charleston (West Virginia) | C48: 75.03759398 | D48: 48.86144578 | F48: 46 | G48: 33 | H48: =IF($G48<>"",INDEX(B$3:B$51,$G48),NA()) -> Bismarck (North Dakota) | I48: =IF($G48<>"",INDEX(C$3:C$51,$G48),NA()) -> 42.55639098 | J48: =IF($G48<>"",INDEX(D$3:D$51,$G48),NA()) -> 81.12048193 | L48: =IF(AND(ISNUMBER(I48:J49)),SQRT((I48-I49)^2+(J48-J49)^2),"") -> 9.525582214 | AF48: 128 | AG48: 7
A49: 47 | B49: Madison (Wisconsin) | C49: 61.84210526 | D49: 66.31927711 | F49: 47 | G49: 40 | H49: =IF($G49<>"",INDEX(B$3:B$51,$G49),NA()) -> Pierre (South Dakota) | I49: =IF($G49<>"",INDEX(C$3:C$51,$G49),NA()) -> 43.40225564 | J49: =IF($G49<>"",INDEX(D$3:D$51,$G49),NA()) -> 71.63253012 | L49: =IF(AND(ISNUMBER(I49:J50)),SQRT((I49-I50)^2+(J49-J50)^2),"") -> 14.65631056 | AF49: 29 | AG49: 171
A50: 48 | B50: Cheyenne (Wyoming) | C50: 35.78947368 | D50: 59.10843373 | F50: 48 | G50: 48 | H50: =IF($G50<>"",INDEX(B$3:B$51,$G50),NA()) -> Cheyenne (Wyoming) | I50: =IF($G50<>"",INDEX(C$3:C$51,$G50),NA()) -> 35.78947368 | J50: =IF($G50<>"",INDEX(D$3:D$51,$G50),NA()) -> 59.10843373 | L50: =IF(AND(ISNUMBER(I50:J51)),SQRT((I50-I51)^2+(J50-J51)^2),"") -> 38.07064393 | AF50: 191 | AG50: 61
G51: 1 | H51: =IF($G51<>"",INDEX(B$3:B$51,$G51),NA()) -> Olympia (Washington) | I51: =IF($G51<>"",INDEX(C$3:C$51,$G51),NA()) -> 5 | J51: =IF($G51<>"",INDEX(D$3:D$51,$G51),NA()) -> 81.5 | AF51: 197 | AG51: 112
L52: =SUM(L$3:L51) -> 494.0733636 | AF52: 1 | AG52: 1
